Cogmind - Beta 14 @@@ ROGUE MODE // 2024.10.25 @ 20:52:33 Player: Proroxy Result: Destroyed by Y-45 Defender with Heavy Assault Rifle Performance ------------- Evolutions (1) 500 Regions Visited (3) 600 Robots Destroyed (18) 90 Value Destroyed (467) 467 Prototype IDs (2) 40 Alien Tech Used (0) 0 Bonus (0) 0 TOTAL SCORE: 1697 Bonus ------- None Cogmind --------- Core Integrity 0/400 Matter 285/300 Energy 100/100 System Corruption 0% Temperature Cool (9) Movement Core (50) Location -9/Storage Parts ------- > --- POWER (1) -------- (None) > --- PROPULSION (4) --- (None) > --- UTILITY (2) ------ Melee Analysis Suite > --- WEAPON (2) ------- Axe > --- INVENTORY (5) ---- Light Armor Plating Drone Bay (2/2) Drone Bay (2/2) Axe Peak State ------------ > --- POWER ------------ Deuterium Engine > --- PROPULSION ------- Flight Unit Flight Unit Flight Unit Flight Unit > --- UTILITY ---------- Melee Analysis Suite Melee Analysis Suite > --- WEAPON ----------- Assault Rifle Axe > --- INVENTORY -------- Light Ion Engine Deuterium Engine Light Armor Plating Maul Axe [Rating: 18] Favorites ----------- Power Deuterium Engine Engine Deuterium Engine Propulsion Aluminum Leg Leg Aluminum Leg Flight Unit Flight Unit Utility Melee Analysis Suite Device Improved Terrain Scanner Storage Medium Storage Unit Processor Melee Analysis Suite Protection Light Armor Plating Weapon Assault Rifle Energy Gun Medium Laser Ballistic Gun Assault Rifle Slashing Weapon Axe Build | -11 -10 -9 -9 ------- Run | Yrd Mat Mat Sto Slots Evolved 2 | . . 2 . Power . | . . . . Propulsion 2 | . . 2 . Utility . | . . . . Weapon . | . . . . Parts Attached 30 | 7 3 16 4 Power 5 | 1 . 3 1 Engine 5 | 1 . 3 1 Core . | . . . . Reactor . | . . . . Propulsion 13 | 2 1 8 2 Treads . | . . . . Leg 6 | 2 1 3 . Wheel . | . . . . Hover . | . . . . Flight 7 | . . 5 2 Utility 7 | 2 1 4 . Device 2 | 1 . 1 . Storage 2 | 1 1 . . Processor 2 | . . 2 . Hackware . | . . . . Protection 1 | . . 1 . Artifact . | . . . . Weapon 5 | 2 1 1 1 Energy Gun 2 | 2 . . . Energy Cannon . | . . . . Ballistic Gun 2 | . 1 . 1 Ballistic Cannon . | . . . . Launcher . | . . . . Special Weapon . | . . . . Impact Weapon . | . . . . Slashing Weapon 1 | . . 1 . Piercing Weapon . | . . . . Special Melee Weapon . | . . . . Unidentified Prototypes . | . . . . Parts Lost 11 | . 1 . 10 Power 1 | . . . 1 Propulsion 6 | . . . 6 Utility 1 | . . . 1 Weapon 3 | . 1 . 2 Highest Loss Streak 8 | . 1 . 8 To Critical Strikes . | . . . . Average Slot Usage (%) 94 | . 99 99 80 Engine 11 | . 14 11 9 Leg 20 | . 28 26 . Flight 16 | . . 18 33 Device 5 | . 14 1 . Storage 7 | . 14 6 . Processor 11 | . . 13 20 Energy Gun 7 | . 20 1 . Ballistic Gun 8 | . 6 11 5 Slashing Weapon 6 | . . 9 11 Peak Build Rating 18 | 9 10 18 18 Average Rating 12 | 5 9 15 15 On Entrance 9 | . 9 10 17 Naked Turns . | . . . . Heaviest Build 24 | 12 18 24 14 Greatest Support 40 | 20 20 40 16 Greatest Overweight (x) 2 | 1 . 1 2 Average Overweight (x) . | . . . . Largest Inventory Capacity 10 | 8 10 10 5 Average Capacity 7 | 7 9 8 5 Most Carried 10 | 7 10 10 5 Average Carried 6 | 3 7 7 4 Final Capacity 10 | 8 10 5 5 Final Carried 10 | 7 10 4 4 Class Distribution -------------------- 71% | Mutant 28% | Scavenger-Sprinter Dominant Class ---------------- Mutant | -10/Materials Mutant | -9/Materials Scavenger-Sprinter | -9/Storage Resources | -11 -10 -9 -9 ----------- Run | Yrd Mat Mat Sto Matter Collected 479 | 270 46 153 10 Remotely . | . . . . Salvage Created 742 | 135 124 343 140 Parts 54 | 7 6 27 14 Haulers Intercepted . | . . . . Recyclers Shooed . | . . . . Parts Field Recycled . | . . . . Retrieved Matter . | . . . . Parts Self-Destructed . | . . . . Prevented . | . . . . Kills | -11 -10 -9 -9 ------- Run | Yrd Mat Mat Sto Combat Hostiles Destroyed 13 | . 3 6 4 Melee 10 | . . 6 4 Guns 3 | . 3 . . Classes Destroyed 6 | 2 1 3 . Tunneler 2 | 2 . . . Recycler 2 | 1 . 1 . Watcher 1 | . . 1 . Swarmer 4 | . . 2 2 Grunt 3 | . 3 . . Sentry 6 | . . 4 2 Best Kill Streak 3 | 2 2 3 2 Combat Bots Only 2 | . 2 2 2 Max Kills in Single Turn 1 | 1 1 1 1 Gunslinging . | . . . . Exploded . | . . . . Melee 1 | . . 1 1 Uniques/NPCs Destroyed . | . . . . Combat | -11 -10 -9 -9 -------- Run | Yrd Mat Mat Sto Hostile Shots Fired 174 | . 24 69 81 Missed 49 | . 4 22 23 Damage Taken 1441 | . 257 500 684 Core 462 | . 55 152 255 Absorbed by Shields . | . . . . Core Remaining (%) 89 | 100 78 . . Volleys Fired 21 | 8 12 1 . Largest 2 | 2 2 1 . Hottest 90 | 90 90 20 . Shots Fired 41 | 16 24 1 . Gun 41 | 16 24 1 . Cannon . | . . . . Launcher . | . . . . Special . | . . . . Kinetic 8 | . 7 1 . Thermal 33 | 16 17 . . Explosive . | . . . . Electromagnetic . | . . . . Robot Hit Streak 10 | 5 10 . . Robot Miss Streak 2 | 2 2 1 . Penetration Max . | . . . . Secondary Targets . | . . . . Shots Hit Robots 62 | 9 18 20 15 Core Hits 22 | 4 7 7 4 Critical Kills . | . . . . Critical Parts Destroyed . | . . . . Critical Strikes 3 | . . 1 2 Sever 3 | . . 1 2 Melee Attacks 48 | . . 29 19 Impact . | . . . . Slashing 48 | . . 29 19 Piercing . | . . . . Sneak Attacks 2 | . . 1 1 Combat Hostiles . | . . . . Follow-up Attacks . | . . . . Damage Inflicted 1689 | 109 209 759 612 Guns 318 | 109 209 . . Cannons . | . . . . Explosions . | . . . . Melee 1371 | . . 759 612 Ramming . | . . . . Kinetic 54 | . 54 . . Thermal 264 | 109 155 . . Explosive . | . . . . Electromagnetic . | . . . . Impact . | . . . . Slashing 1371 | . . 759 612 Piercing . | . . . . Highest Corruption . | . . . . Average Corruption . | . . . . Corruption Purged . | . . . . Corruption Blocked . | . . . . Overload Shots . | . . . . Overflow Damage 26 | . . 26 . Projectiles . | . . . . Explosions . | . . . . Melee 26 | . . 26 . Knockbacks . | . . . . Impact . | . . . . Kinetic . | . . . . Secondary . | . . . . Self-Inflicted Damage . | . . . . Shots . | . . . . Rammed . | . . . . Targets Rammed . | . . . . Kicked . | . . . . Crushed . | . . . . Highest Temperature 277 | 60 277 6 7 Average Temperature 93 | 28 141 6 5 Received Heat Transfer 441 | . 144 84 213 Siege Activations . | . . . . Robots Corrupted . | . . . . Combat Hostiles . | . . . . Parts Fried . | . . . . Impact Corruptions . | . . . . Robots Melted . | . . . . Combat Hostiles . | . . . . Parts Melted 1 | . . 1 . Heat Transferred 706 | 285 421 . . Parts Sabotaged . | . . . . Parts Stolen . | . . . . Parts Stripped . | . . . . Power Chain Reactions . | . . . . Alert | -11 -10 -9 -9 ------- Run | Yrd Mat Mat Sto Peak Influence 286 | 15 71 261 286 Initial 109 | . 9 29 109 Average 86 | 5 34 101 177 Maximum Alert Level 1 | . . 1 1 Low Security (%) 87 | 100 100 83 69 Level 1 12 | . . 16 30 Level 2 . | . . . . Level 3 . | . . . . Level 4 . | . . . . Level 5 . | . . . . High Security . | . . . . Max Security . | . . . . Squads Dispatched 1 | . . 1 . Investigation . | . . . . Extermination . | . . . . Reinforcement 1 | . . 1 . Assault . | . . . . Garrison . | . . . . Intercept . | . . . . Searches Triggered . | . . . . Construction Impeded . | . . . . Haulers Reinforced . | . . . . Active Scanning Responses . | . . . . Cargo Convoy Interrupts . | . . . . Stealth | -11 -10 -9 -9 --------- Run | Yrd Mat Mat Sto Distress Signals 1 | . . 1 . Communications Jammed . | . . . . Distress Signals . | . . . . Times Spotted 29 | . 4 13 12 Peak Tracking Total 8 | . 2 6 8 Tactical Retreats 4 | . . . 4 Traps | -11 -10 -9 -9 ------- Run | Yrd Mat Mat Sto Traps Triggered . | . . . . Indirectly . | . . . . Trap Hack Attempts . | . . . . Triggered . | . . . . Disarmed . | . . . . Reprogrammed . | . . . . Reused . | . . . . Traps Extracted . | . . . . Installed . | . . . . Triggered . | . . . . Machines | -11 -10 -9 -9 ---------- Run | Yrd Mat Mat Sto Machines Disabled . | . . . . Max in Single Turn . | . . . . Machines Repaired . | . . . . Machines Dismantled . | . . . . Machines Sabotaged . | . . . . Overloaded Fab Kills . | . . . . Hacking | -11 -10 -9 -9 --------- Run | Yrd Mat Mat Sto Machines Accessed 10 | . 2 2 6 Terminals 8 | . 2 1 5 Fabricators . | . . . . Repair Stations 1 | . . . 1 Recycling Units . | . . . . Scanalyzers 1 | . . 1 . Garrison Access . | . . . . Total Hacks 30 | . 7 5 18 Successful 20 | . 5 3 12 Failed 10 | . 2 2 6 Catastrophic 1 | . . . 1 Database Lockouts . | . . . . Manual . | . . . . Terminals 26 | . 7 3 16 Fabricators . | . . . . Repair Stations 2 | . . . 2 Recycling Units . | . . . . Scanalyzers 2 | . . 2 . Garrison Access . | . . . . Terminal Hacks 20 | . 5 3 12 Record 9 | . 4 . 5 Prototype ID Bank 1 | . . . 1 Open Door 1 | . . . 1 Alert Level 3 | . . 1 2 Unreport Threat 1 | . . . 1 Locate Traps 3 | . 1 1 1 Maintenance Status 1 | . . 1 . Zone Layout 1 | . . . 1 Fabricator Hacks . | . . . . Repair Station Hacks . | . . . . Recycling Unit Hacks . | . . . . Scanalyzer . | . . . . Garrison Access Hacks . | . . . . Unauthorized Hacks . | . . . . Terminals . | . . . . Fabricators . | . . . . Repair Stations . | . . . . Recycling Units . | . . . . Scanalyzers . | . . . . Garrison Access . | . . . . Data Cores Recovered . | . . . . Used . | . . . . Hacking Detections 8 | . 1 2 5 Full Trace Events . | . . . . Feedback Events . | . . . . Feedback Blocked . | . . . . Robot Schematics Acquired . | . . . . Robots Built . | . . . . Authchips . | . . . . Time . | . . . . Total Robot Build Rating . | . . . . Part Schematics Acquired . | . . . . Parts Built . | . . . . Authchips . | . . . . Time . | . . . . Total Part Build Rating . | . . . . Parts Repaired . | . . . . Time . | . . . . Parts Recycled . | . . . . Recycled Matter . | . . . . Retrieved Matter . | . . . . Retrieved Components . | . . . . Parts Scanalyzed . | . . . . Part Schematics Acquired . | . . . . Parts Damaged . | . . . . Bothacking | -11 -10 -9 -9 ------------ Run | Yrd Mat Mat Sto Used RIF Installer . | . . . . Robots Hacked . | . . . . Non-combat . | . . . . Combat . | . . . . Robot Hacks Applied . | . . . . Relay Couplers Released . | . . . . Fabnet Peak Effective % . | . . . . Robots Rewired . | . . . . Allies Hacked . | . . . . Hacks Repelled . | . . . . Allies | -11 -10 -9 -9 -------- Run | Yrd Mat Mat Sto Total Allies . | . . . . Largest Group . | . . . . Highest-Rated Group . | . . . . Highest-Rated Ally . | . . . . Total Orders . | . . . . Ally Attacks . | . . . . Total Damage . | . . . . Kills . | . . . . Allies Corrupted . | . . . . Allies Melted . | . . . . Intel | -11 -10 -9 -9 ------- Run | Yrd Mat Mat Sto Robot Analysis Total . | . . . . Derelict Logs Recovered . | . . . . Drone Launches . | . . . . Drone Recoveries . | . . . . Exploration | -11 -10 -9 -9 ------------- Run | Yrd Mat Mat Sto Turns Passed 870 | 119 233 331 187 Spaces Moved 845 | 64 146 293 342 Core 21 | 18 . . 3 Treads . | . . . . Legs 277 | 46 146 85 . Wheels . | . . . . Hover . | . . . . Flight 547 | . . 208 339 Fastest Speed 31 | 50 120 31 31 Average Speed 63 | 116 120 57 34 Slowest Speed 200 | 190 120 120 200 Overloaded Moves . | . . . . Propulsion Burnouts . | . . . . Robots Hopped . | . . . . Cave-ins Triggered . | . . . . Exploration Rate (%) 27 | 4 28 29 48 Regions Visited 3 Branch Regions 1 Pre-discovered Areas . | . . . . Known Exits Taken . | . . . . Unknown Exits Taken 3 | 1 1 1 . Scrap Searched . | . . . . Spaces Dug . | . . . . Terrain Destroyed . | . . . . Melee . | . . . . Projectile . | . . . . AOE . | . . . . Terrain Rammed . | . . . . Walls Destroyed . | . . . . Machines Disabled . | . . . . Actions | -11 -10 -9 -9 --------- Run | Yrd Mat Mat Sto Total 1059 | 92 179 411 377 Wait 48 | . 13 32 3 Move 842 | 63 145 292 342 Hop . | . . . . Pick Up 42 | 14 5 17 6 Fast Attach . | . . . . Attach 17 | 7 1 6 3 Detach 3 | . . 3 . Swap 13 | . 2 10 1 Drop 25 | . 1 21 3 Fire 21 | 8 12 1 . Melee 48 | . . 29 19 Ram . | . . . . Kick . | . . . . Crush . | . . . . Escape Stasis . | . . . . Rewire . | . . . . Trap . | . . . . Miscellaneous . | . . . . Route ------- -11/Scrapyard -10/Materials -9/Materials -9/Storage History --------- Turn | Location | Event 5 | -11/Scrapyard | Discovered new exit (range 15) 120 | -11/Scrapyard | Entered Materials 312 | -10/Materials | Discovered new exit (range 15) 317 | -10/Materials | Build established: Mutant 353 | -10/Materials | Entered another Materials area 353 | -9/Materials | Evolved 2 slots: Propulsion x2 680 | -9/Materials | Discovered new exit (range 13) 684 | -9/Materials | Entered Storage 822 | -9/Storage | Core integrity fell below 50% 846 | -9/Storage | Core integrity fell below 20% 871 | -9/Storage | Destroyed by Y-45 Defender with Heavy Assault Rifle Last Messages --------------- Connecting with Door Terminal... Dropped Maul. Acquired Drone Bay. Dropped Deuterium Engine. Acquired Drone Bay. Sneak attack on A-02 Transporter. Flight Unit destroyed. Critical hit (Burn: +37). Flight Unit destroyed. Critical hit (Burn: +37). S-10 Pest destroyed. Imp. Ion Engine destroyed. S-10 Pest destroyed. Flight Unit destroyed. Melee Analysis Suite destroyed. Acquired Flight Unit. Flight Unit destroyed. G-34 Mercenary Aluminum Leg severed. Hvy. Assault Rifle destroyed. Flight Unit destroyed. Map ----- +----------------------------------------------------+ | ?????????????????????????????????????????????????? | | ?????????????????????????????????????????????????? | | ?????????????????????????????????????????????????? | | ?????????????????????????????????????????????????? | | ?????????????????????????????????????????????????? | | ?????????????????????????????????????????????????? | | ?????????????????????????????????????????????????? | | ?????????????????????????????????????????????????? | | ?????????????????????????????????????????????????? | | ????????????????????????????#????????????????????? | | ???????????????????????????? ??????????????????? | | ??????????????????????????? ??????????????????? | | ??????????????????????????? ???????????????????? | | ??????????????????????????? ???????????????????? | | ????????????????????????+## ????????????????????? | | ???????????????????????# ????????????????????? | | ???????????????????????# ?????????????????????? | | ???????????????????????# ?????????????????????? | | ??????????????????????? ??????????????????????? | | ???????????????????????# ??????????????????????? | | ???????????????????????# ?????????? ????????? | | ???????????????????????# ?????????? ????????? | | ???????????????????????#%#?????????? ????????? | | ???????????????????????#%#?????????? ????????? | | ????????####????????####g######?????# #????????? | | ??????? #????????# Y*[@*s ##????# #????????? | | ?????" """ #????##### """[ #????# #????????? | | ????"" """ #????# # "G" ##????# #????????? | | ???""" """ #????# # " " #?????# #????????? | | ?? """ """ #????# # !] ##????# #????????? | | ?# """ """ #????# # = ]! T#????#^^ ########## | | ?# ###### # ##????#^^ # | | ?#[ / + # #?????# # | | ?# ######### #####+########### # | | ??????????## # | | ??????????# + | | ??????????+ # | | ??????????# ####+################+###+# | | ??????????## #??# #?????""" """ # | | ???????????# #### #???? """ """ ######/### | | ???????????# + """ #??"T """ """ #????# #?? | | ???????????# # "?"""" #???" #????# ### | | ???????????# # "????" #???# #????# ""# | | ???????????+ / "????" #???# #????# Y"# | | ???????????####### """"?" #???? #????# ""# | | ?????????????????# """ #???? #????# ### | | ?????????????????# #????############### ##? | | ?????????????????#####+####?????????# ## =[#? | | ##?????????????###### #?########### ##!%*#? | | #?????????????#! !## #?# # ## ! #? | +----------------------------------------------------+ Best States ------------- Heat Dissipation 28 Energy Generation 14 Energy Capacity 275 Matter Stores 300 Matter Capacity 300 Sight Range 16 Terrain Scan Range 16 Terrain Scan Density 10 ECM Strength 1 Evasion (%) 63 Melee Accuracy 10 Item Schematics ----------------- None Robot Schematics ------------------ None Fabricated ------------ Nothing Alien Tech Used ----------------- None Achievements -------------- None Challenges ------------ None Game ------ Seed MissileMediumNeutralizer Manual? 0 Play Time 00:29:54 Cumulative 21.2 hours Start 2024.10.25 @ 20:20:00 End 2024.10.25 @ 20:52:33 Sessions 1 Manual Loads 0 Difficulty Rogue Special Mode None Game No. 20 Rogue 20 Adventurer 0 Explorer 0 Win Type - Total 0 Types 0/0/0/0/0/0/0/0/0 Lore% 6 Gallery% 19 Achievement% 14 Wizard Run 0 Options --------- Layout 1 ASCII 0 Keyboard 1 Movement Numpad Keybinds 0 Fullscreen 1 Font 24/Smallcaps Map View 50x35 Zoom Use 0% Tactical HUD 0 Map Filters NONE Filters NONE Steam 1 RUN: 3705baff-e257-4a71-9c08-9626f20352c1